[Event "Titled Tuesday Blitz August 08 Early 2023"]
[White "TrompeterImEther"]
[Black "Sharavdorj, Dashzegve"]
[BlackFideId "4900340"]
[WhiteElo "2464"]
[BlackElo "2615"]
[Result "0-1"]
[Round "8"]
[TimeControl "180+1"]
[Date "2023.08.08"]
[WhiteClock "0:00:07"]
[BlackClock "0:00:35"]
[Board "87"]

1. e4 {[%clk 0:03:00]}  c5 {[%clk 0:02:59]} 2. Nf3 {[%clk 0:03:00]}  e6 {[%clk 0:03:00]} 3. d4 {[%clk 0:03:00]}  cxd4 {[%clk 0:03:00]} 4. Nxd4 {[%clk 0:03:01]}  Nc6 {[%clk 0:03:01]} 5. Nc3 {[%clk 0:02:59]}  a6 {[%clk 0:03:01]} 6. Be3 {[%clk 0:02:56]}  Nf6 {[%clk 0:02:59]} 7. f4 {[%clk 0:02:55]}  Bb4 {[%clk 0:02:58]} 8. Bd3 {[%clk 0:02:53]}  e5 {[%clk 0:02:57]} 9. Nxc6 {[%clk 0:02:48]}  dxc6 {[%clk 0:02:56]} 10. f5 {[%clk 0:02:47]}  h6 {[%clk 0:02:48]} 11. Qf3 {[%clk 0:02:47]}  Qe7 {[%clk 0:02:48]} 12. a3 {[%clk 0:02:46]}  Bc5 {[%clk 0:02:47]} 13. Bd2 {[%clk 0:02:44]}  b5 {[%clk 0:02:47]} 14. O-O-O {[%clk 0:02:43]}  Bb7 {[%clk 0:02:46]} 15. g4 {[%clk 0:02:42]}  O-O-O {[%clk 0:02:44]} 16. Kb1 {[%clk 0:02:40]}  Bd4 {[%clk 0:02:42]} 17. Ne2 {[%clk 0:02:39]}  Bb6 {[%clk 0:02:41]} 18. c3 {[%clk 0:02:38]}  c5 {[%clk 0:02:40]} 19. Bc2 {[%clk 0:02:38]}  c4 {[%clk 0:02:37]} 20. Ng3 {[%clk 0:02:38]}  Rd7 {[%clk 0:02:34]} 21. h4 {[%clk 0:02:38]}  Rhd8 {[%clk 0:02:30]} 22. Bc1 {[%clk 0:02:36]}  Rxd1 {[%clk 0:02:27]} 23. Rxd1 {[%clk 0:02:37]}  Rxd1 {[%clk 0:02:26]} 24. Qxd1 {[%clk 0:02:38]}  Bf2 {[%clk 0:02:22]} 25. Qf3 {[%clk 0:02:31]}  Bxg3 {[%clk 0:02:22]} 26. Qxg3 {[%clk 0:02:31]}  Bxe4 {[%clk 0:02:20]} 27. g5 {[%clk 0:02:23]}  Bxc2+ {[%clk 0:02:18]} 28. Kxc2 {[%clk 0:02:23]}  hxg5 {[%clk 0:02:18]} 29. hxg5 {[%clk 0:02:24]}  Nd5 {[%clk 0:02:16]} 30. Qg4 {[%clk 0:02:11]}  Qd7 {[%clk 0:02:16]} 31. Qe4 {[%clk 0:02:11]}  f6 {[%clk 0:02:12]} 32. gxf6 {[%clk 0:02:08]}  gxf6 {[%clk 0:02:11]} 33. Bd2 {[%clk 0:02:05]}  Kc7 {[%clk 0:02:08]} 34. b3 {[%clk 0:02:02]}  cxb3+ {[%clk 0:02:03]} 35. Kxb3 {[%clk 0:02:03]}  Ne7 {[%clk 0:02:03]} 36. Qe3 {[%clk 0:01:49]}  Qd5+ {[%clk 0:01:58]} 37. Kb2 {[%clk 0:01:49]}  Nxf5 {[%clk 0:01:57]} 38. Qa7+ {[%clk 0:01:49]}  Qb7 {[%clk 0:01:56]} 39. Qc5+ {[%clk 0:01:48]}  Qc6 {[%clk 0:01:55]} 40. Qa7+ {[%clk 0:01:48]}  Kd6 {[%clk 0:01:55]} 41. c4 {[%clk 0:01:45]}  bxc4 {[%clk 0:01:52]} 42. Bb4+ {[%clk 0:01:46]}  Kd5 {[%clk 0:01:51]} 43. Qh7 {[%clk 0:01:43]}  Nd4 {[%clk 0:01:46]} 44. Qh1+ {[%clk 0:01:41]}  Ke6 {[%clk 0:01:46]} 45. Qh3+ {[%clk 0:01:38]}  Nf5 {[%clk 0:01:45]} 46. Qh7 {[%clk 0:01:35]}  Qg2+ {[%clk 0:01:42]} 47. Kc3 {[%clk 0:01:35]}  Qf3+ {[%clk 0:01:38]} 48. Kxc4 {[%clk 0:01:33]}  Ne3+ {[%clk 0:01:36]} 49. Kc5 {[%clk 0:01:27]}  Qd5+ {[%clk 0:01:33]} 50. Kb6 {[%clk 0:01:27]}  Nc4+ {[%clk 0:01:29]} 51. Kxa6 {[%clk 0:01:27]}  Qc6+ {[%clk 0:01:28]} 52. Ka7 {[%clk 0:01:28]}  e4 {[%clk 0:01:22]} 53. Qg8+ {[%clk 0:01:24]}  Kf5 {[%clk 0:01:20]} 54. Qh7+ {[%clk 0:01:24]}  Kf4 {[%clk 0:01:19]} 55. Qh4+ {[%clk 0:01:24]}  Ke5 {[%clk 0:01:18]} 56. Qg3+ {[%clk 0:01:22]}  Kd5 {[%clk 0:01:17]} 57. Qg7 {[%clk 0:01:14]}  Qb6+ {[%clk 0:01:15]} 58. Ka8 {[%clk 0:01:13]}  Qa6+ {[%clk 0:01:12]} 59. Kb8 {[%clk 0:01:13]}  Qe6 {[%clk 0:01:11]} 60. Qb7+ {[%clk 0:01:10]}  Kd4 {[%clk 0:01:10]} 61. Qa7+ {[%clk 0:01:05]}  Kd3 {[%clk 0:01:09]} 62. Qh7 {[%clk 0:00:59]}  f5 {[%clk 0:01:05]} 63. Qh3+ {[%clk 0:00:59]}  e3 {[%clk 0:01:04]} 64. Qf3 {[%clk 0:00:56]}  Qe4 {[%clk 0:01:01]} 65. Qd1+ {[%clk 0:00:56]}  Nd2 {[%clk 0:01:00]} 66. Ka7 {[%clk 0:00:54]}  Qd4+ {[%clk 0:00:58]} 67. Kb8 {[%clk 0:00:49]}  f4 {[%clk 0:00:57]} 68. Kb7 {[%clk 0:00:40]}  Qd5+ {[%clk 0:00:52]} 69. Ka7 {[%clk 0:00:38]}  Qb3 {[%clk 0:00:51]} 70. Qg4 {[%clk 0:00:28]}  Qf7+ {[%clk 0:00:50]} 71. Kb6 {[%clk 0:00:26]}  e2 {[%clk 0:00:50]} 72. Qh3+ {[%clk 0:00:23]}  f3 {[%clk 0:00:48]} 73. Qh4 {[%clk 0:00:14]}  Nc4+ {[%clk 0:00:45]} 74. Kc5 {[%clk 0:00:11]}  Qc7+ {[%clk 0:00:42]} 75. Kb5 {[%clk 0:00:11]}  Qd7+ {[%clk 0:00:40]} 76. Kc5 {[%clk 0:00:11]}  Qf5+ {[%clk 0:00:39]} 77. Kc6 {[%clk 0:00:11]}  Qe4+ {[%clk 0:00:38]} 78. Qxe4+ {[%clk 0:00:09]}  Kxe4 {[%clk 0:00:38]} 79. Be1 {[%clk 0:00:07]}  Nxa3 {[%clk 0:00:35]} 0-1


[Site "https://www.chess.com"]

[Event "Titled Tuesday Blitz August 08 Early 2023"]
[White "Mrudul Dehankar"]
[Black "Budrewicz, Krzysztof"]
[WhiteFideId "25096990"]
[BlackFideId "1127950"]
[WhiteElo "2457"]
[BlackElo "2593"]
[Result "1-0"]
[Round "8"]
[TimeControl "180+1"]
[Date "2023.08.08"]
[WhiteClock "0:00:03"]
[BlackClock "0:01:04"]
[Board "90"]

1. e4 {[%clk 0:03:00]}  e5 {[%clk 0:02:56]} 2. Nf3 {[%clk 0:03:00]}  Nc6 {[%clk 0:02:56]} 3. Bb5 {[%clk 0:03:00]}  Nge7 {[%clk 0:02:55]} 4. c3 {[%clk 0:02:58]}  a6 {[%clk 0:02:56]} 5. Ba4 {[%clk 0:02:58]}  g6 {[%clk 0:02:56]} 6. d4 {[%clk 0:02:57]}  exd4 {[%clk 0:02:53]} 7. cxd4 {[%clk 0:02:57]}  b5 {[%clk 0:02:53]} 8. Bb3 {[%clk 0:02:55]}  Bg7 {[%clk 0:02:53]} 9. O-O {[%clk 0:02:55]}  O-O {[%clk 0:02:53]} 10. Nc3 {[%clk 0:02:43]}  Na5 {[%clk 0:02:44]} 11. Bc2 {[%clk 0:02:41]}  Bb7 {[%clk 0:02:43]} 12. Bg5 {[%clk 0:02:29]}  h6 {[%clk 0:02:43]} 13. Bf4 {[%clk 0:02:28]}  d6 {[%clk 0:02:43]} 14. Rb1 {[%clk 0:02:21]}  Nc4 {[%clk 0:02:41]} 15. Qc1 {[%clk 0:02:16]}  g5 {[%clk 0:02:40]} 16. Be3 {[%clk 0:02:13]}  Ng6 {[%clk 0:02:37]} 17. Bd3 {[%clk 0:02:08]}  Nxe3 {[%clk 0:02:36]} 18. fxe3 {[%clk 0:02:06]}  g4 {[%clk 0:02:30]} 19. Ne1 {[%clk 0:01:31]}  c5 {[%clk 0:02:29]} 20. Nc2 {[%clk 0:01:31]}  Rc8 {[%clk 0:02:24]} 21. Qd1 {[%clk 0:01:27]}  Qg5 {[%clk 0:02:21]} 22. Rf5 {[%clk 0:01:25]}  Qe7 {[%clk 0:02:07]} 23. Qxg4 {[%clk 0:01:24]}  b4 {[%clk 0:02:03]} 24. Nd5 {[%clk 0:00:54]}  Bxd5 {[%clk 0:02:03]} 25. exd5 {[%clk 0:00:54]}  c4 {[%clk 0:01:59]} 26. Be2 {[%clk 0:00:29]}  b3 {[%clk 0:01:59]} 27. Na3 {[%clk 0:00:17]}  Qxe3+ {[%clk 0:01:58]} 28. Kh1 {[%clk 0:00:18]}  bxa2 {[%clk 0:01:54]} 29. Ra1 {[%clk 0:00:18]}  Rfe8 {[%clk 0:01:53]} 30. Bxc4 {[%clk 0:00:15]}  Re4 {[%clk 0:01:40]} 31. Rf3 {[%clk 0:00:07]}  Qxd4 {[%clk 0:01:37]} 32. Qxc8+ {[%clk 0:00:06]}  Kh7 {[%clk 0:01:37]} 33. Bxa2 {[%clk 0:00:05]}  Qxb2 {[%clk 0:01:36]} 34. Raf1 {[%clk 0:00:04]}  Nh4 {[%clk 0:01:33]} 35. Rg3 {[%clk 0:00:03]}  Qxa2 {[%clk 0:01:25]} 36. Qc3 {[%clk 0:00:03]}  Bxc3 {[%clk 0:01:23]} 37. Rxf7+ {[%clk 0:00:01]}  Kh8 {[%clk 0:01:15]} 38. Rf8+ {[%clk 0:00:02]}  Kh7 {[%clk 0:01:15]} 39. Rf7+ {[%clk 0:00:02]}  Bg7 {[%clk 0:01:04]} 40. Rfxg7+ {[%clk 0:00:02]}  Kh8 {[%clk 0:01:03]} 41. Rg8+ {[%clk 0:00:03]}  Kh7 {[%clk 0:01:04]} 42. R3g7# {[%clk 0:00:03]} 1-0


[Site "https://www.chess.com"]

[Event "Titled Tuesday Blitz August 08 Early 2023"]
[White "Vlassov, Nikolai"]
[Black "Hrbek, Stepan"]
[WhiteFideId "4103360"]
[BlackFideId "393479"]
[WhiteElo "2586"]
[BlackElo "2453"]
[Result "1-0"]
[Round "8"]
[TimeControl "180+1"]
[Date "2023.08.08"]
[WhiteClock "0:00:05"]
[BlackClock "0:00:00"]
[Board "91"]

1. e4 {[%clk 0:03:00]}  c5 {[%clk 0:02:59]} 2. c3 {[%clk 0:03:00]}  Nf6 {[%clk 0:02:57]} 3. e5 {[%clk 0:03:00]}  Nd5 {[%clk 0:02:58]} 4. d4 {[%clk 0:03:01]}  cxd4 {[%clk 0:02:58]} 5. cxd4 {[%clk 0:03:02]}  d6 {[%clk 0:02:58]} 6. Bc4 {[%clk 0:03:01]}  Nb6 {[%clk 0:02:56]} 7. Bb3 {[%clk 0:03:01]}  dxe5 {[%clk 0:02:45]} 8. Qh5 {[%clk 0:03:00]}  Qd7 {[%clk 0:02:37]} 9. Qxf7+ {[%clk 0:02:54]}  Kd8 {[%clk 0:02:38]} 10. dxe5 {[%clk 0:02:50]}  e6 {[%clk 0:02:38]} 11. Bg5+ {[%clk 0:02:46]}  Kc7 {[%clk 0:02:31]} 12. Bxe6 {[%clk 0:02:33]}  Bb4+ {[%clk 0:02:29]} 13. Nc3 {[%clk 0:02:33]}  Qxf7 {[%clk 0:02:27]} 14. Bxf7 {[%clk 0:02:32]}  Rf8 {[%clk 0:02:14]} 15. Bb3 {[%clk 0:02:12]}  Nc6 {[%clk 0:02:11]} 16. f4 {[%clk 0:01:35]}  h6 {[%clk 0:02:02]} 17. Bh4 {[%clk 0:01:35]}  Rxf4 {[%clk 0:01:55]} 18. Bg3 {[%clk 0:01:32]}  Re4+ {[%clk 0:01:55]} 19. Ne2 {[%clk 0:01:28]}  Bxc3+ {[%clk 0:01:44]} 20. bxc3 {[%clk 0:01:28]}  Bg4 {[%clk 0:01:43]} 21. Bd1 {[%clk 0:01:27]}  Rd8 {[%clk 0:01:27]} 22. O-O {[%clk 0:01:15]}  Bxe2 {[%clk 0:01:25]} 23. Rf7+ {[%clk 0:01:11]}  Kc8 {[%clk 0:01:24]} 24. Bc2 {[%clk 0:00:44]}  Bd3 {[%clk 0:01:21]} 25. Bb3 {[%clk 0:00:25]}  Bc4 {[%clk 0:01:15]} 26. e6 {[%clk 0:00:20]}  Nd5 {[%clk 0:00:21]} 27. Bc2 {[%clk 0:00:12]}  Re2 {[%clk 0:00:13]} 28. Bf5 {[%clk 0:00:09]}  Nce7 {[%clk 0:00:14]} 29. Bg4 {[%clk 0:00:09]}  Rc2 {[%clk 0:00:07]} 30. Rxg7 {[%clk 0:00:08]}  Rxc3 {[%clk 0:00:06]} 31. Bh4 {[%clk 0:00:08]}  Re8 {[%clk 0:00:02]} 32. Bh5 {[%clk 0:00:08]}  Nf5 {[%clk 0:00:02]} 33. Bxe8 {[%clk 0:00:08]}  Nxg7 {[%clk 0:00:02]} 34. Bd7+ {[%clk 0:00:08]}  Kc7 {[%clk 0:00:01]} 35. Re1 {[%clk 0:00:06]}  Nf5 {[%clk 0:00:01]} 36. Bf6 {[%clk 0:00:05]}  Nxf6 {[%clk 0:00:00]} 37. g4 {[%clk 0:00:05]} 1-0


[Site "https://www.chess.com"]

[Event "Titled Tuesday Blitz August 08 Early 2023"]
[White "vishwa_vijeta"]
[Black "Jumanov, Elbek"]
[BlackFideId "14202905"]
[WhiteElo "2581"]
[BlackElo "2440"]
[Result "0-1"]
[Round "8"]
[TimeControl "180+1"]
[Date "2023.08.08"]
[WhiteClock "0:01:08"]
[BlackClock "0:00:32"]
[Board "93"]

1. e4 {[%clk 0:03:00]}  c5 {[%clk 0:02:57]} 2. Nf3 {[%clk 0:03:00]}  e6 {[%clk 0:02:57]} 3. d4 {[%clk 0:03:01]}  cxd4 {[%clk 0:02:58]} 4. Nxd4 {[%clk 0:03:02]}  Nf6 {[%clk 0:02:58]} 5. Nc3 {[%clk 0:03:02]}  d6 {[%clk 0:02:59]} 6. f4 {[%clk 0:02:59]}  a6 {[%clk 0:02:58]} 7. Be2 {[%clk 0:02:58]}  Qc7 {[%clk 0:02:58]} 8. O-O {[%clk 0:02:58]}  Be7 {[%clk 0:02:58]} 9. Be3 {[%clk 0:02:58]}  Nc6 {[%clk 0:02:58]} 10. Bf3 {[%clk 0:02:58]}  O-O {[%clk 0:02:58]} 11. Qd2 {[%clk 0:02:57]}  Bd7 {[%clk 0:02:32]} 12. Kh1 {[%clk 0:02:42]}  Rac8 {[%clk 0:02:28]} 13. Nxc6 {[%clk 0:02:41]}  Bxc6 {[%clk 0:02:26]} 14. g4 {[%clk 0:02:41]}  b5 {[%clk 0:02:23]} 15. g5 {[%clk 0:02:40]}  b4 {[%clk 0:02:00]} 16. gxf6 {[%clk 0:02:11]}  bxc3 {[%clk 0:01:59]} 17. bxc3 {[%clk 0:02:12]}  Bxf6 {[%clk 0:01:56]} 18. Bd4 {[%clk 0:02:12]}  e5 {[%clk 0:01:46]} 19. fxe5 {[%clk 0:02:11]}  dxe5 {[%clk 0:01:46]} 20. Be3 {[%clk 0:02:10]}  Qb7 {[%clk 0:01:42]} 21. Bg5 {[%clk 0:01:56]}  Bxe4 {[%clk 0:01:34]} 22. Bxf6 {[%clk 0:01:40]}  Bxf3+ {[%clk 0:01:33]} 23. Kg1 {[%clk 0:01:41]}  gxf6 {[%clk 0:01:17]} 24. Qh6 {[%clk 0:01:36]}  Rc4 {[%clk 0:01:01]} 25. h3 {[%clk 0:01:20]}  Rf4 {[%clk 0:00:53]} 26. Rxf3 {[%clk 0:01:01]}  Qxf3 {[%clk 0:00:50]} 27. Kh2 {[%clk 0:00:59]}  Qe2+ {[%clk 0:00:38]} 28. Kh1 {[%clk 0:00:58]}  Rf1+ {[%clk 0:00:37]} 29. Rxf1 {[%clk 0:00:54]}  Qxf1+ {[%clk 0:00:37]} 30. Kh2 {[%clk 0:00:55]}  Qf4+ {[%clk 0:00:36]} 31. Qxf4 {[%clk 0:00:54]}  exf4 {[%clk 0:00:37]} 32. Kg2 {[%clk 0:00:55]}  Rc8 {[%clk 0:00:37]} 33. Kf3 {[%clk 0:00:56]}  Rxc3+ {[%clk 0:00:38]} 34. Kxf4 {[%clk 0:00:57]}  Rxc2 {[%clk 0:00:38]} 35. Kf5 {[%clk 0:00:58]}  Rxa2 {[%clk 0:00:38]} 36. Kxf6 {[%clk 0:00:58]}  Rh2 {[%clk 0:00:38]} 37. h4 {[%clk 0:00:59]}  Rxh4 {[%clk 0:00:38]} 38. Ke7 {[%clk 0:00:59]}  Rf4 {[%clk 0:00:37]} 39. Kd7 {[%clk 0:01:00]}  h5 {[%clk 0:00:36]} 40. Kc7 {[%clk 0:01:01]}  a5 {[%clk 0:00:36]} 41. Kb8 {[%clk 0:01:02]}  h4 {[%clk 0:00:35]} 42. Ka8 {[%clk 0:01:03]}  h3 {[%clk 0:00:35]} 43. Kb8 {[%clk 0:01:04]}  h2 {[%clk 0:00:35]} 44. Ka8 {[%clk 0:01:05]}  h1=Q+ {[%clk 0:00:35]} 45. Kb8 {[%clk 0:01:05]}  Rb4+ {[%clk 0:00:34]} 46. Kc7 {[%clk 0:01:06]}  Qb7+ {[%clk 0:00:33]} 47. Kd8 {[%clk 0:01:07]}  Rd4+ {[%clk 0:00:32]} 48. Ke8 {[%clk 0:01:08]}  Qd7# {[%clk 0:00:32]} 0-1


[Site "https://www.chess.com"]

[Event "Titled Tuesday Blitz August 08 Early 2023"]
[White "Llanos, Guillermo"]
[Black "Aarav Dengla"]
[WhiteFideId "100358"]
[BlackFideId "45059756"]
[WhiteElo "2424"]
[BlackElo "2561"]
[Result "0-1"]
[Round "8"]
[TimeControl "180+1"]
[Date "2023.08.08"]
[WhiteClock "0:00:05"]
[BlackClock "0:00:08"]
[Board "97"]

1. b3 {[%clk 0:03:00]}  e5 {[%clk 0:02:53]} 2. Bb2 {[%clk 0:03:01]}  Nc6 {[%clk 0:02:53]} 3. e3 {[%clk 0:03:01]}  d5 {[%clk 0:02:51]} 4. Bb5 {[%clk 0:03:01]}  Bd6 {[%clk 0:02:50]} 5. f4 {[%clk 0:03:01]}  Qe7 {[%clk 0:02:38]} 6. Nf3 {[%clk 0:02:59]}  Bg4 {[%clk 0:02:32]} 7. fxe5 {[%clk 0:02:50]}  Bxf3 {[%clk 0:02:25]} 8. exd6 {[%clk 0:02:14]}  Qh4+ {[%clk 0:01:23]} 9. g3 {[%clk 0:02:13]}  Qg4 {[%clk 0:00:42]} 10. Be2 {[%clk 0:02:10]}  Bxe2 {[%clk 0:00:42]} 11. Qxe2 {[%clk 0:02:09]}  Qxe2+ {[%clk 0:00:43]} 12. Kxe2 {[%clk 0:02:09]}  f6 {[%clk 0:00:44]} 13. dxc7 {[%clk 0:02:08]}  Rc8 {[%clk 0:00:44]} 14. Nc3 {[%clk 0:02:06]}  Nge7 {[%clk 0:00:44]} 15. Nb5 {[%clk 0:02:05]}  Kd7 {[%clk 0:00:44]} 16. g4 {[%clk 0:01:51]}  a6 {[%clk 0:00:43]} 17. Nd4 {[%clk 0:01:51]}  Rxc7 {[%clk 0:00:43]} 18. Rac1 {[%clk 0:01:48]}  Rhc8 {[%clk 0:00:39]} 19. Nxc6 {[%clk 0:01:30]}  Rxc6 {[%clk 0:00:40]} 20. Bc3 {[%clk 0:01:29]}  Re6 {[%clk 0:00:33]} 21. Kf2 {[%clk 0:01:10]}  Ng6 {[%clk 0:00:26]} 22. h4 {[%clk 0:01:06]}  Re4 {[%clk 0:00:25]} 23. Kf3 {[%clk 0:01:04]}  Ke6 {[%clk 0:00:21]} 24. h5 {[%clk 0:01:00]}  Ne5+ {[%clk 0:00:21]} 25. Bxe5 {[%clk 0:01:00]}  fxe5 {[%clk 0:00:20]} 26. d3 {[%clk 0:00:55]}  Rf8+ {[%clk 0:00:20]} 27. Ke2 {[%clk 0:00:50]}  Rxg4 {[%clk 0:00:20]} 28. Rcg1 {[%clk 0:00:50]}  Rxg1 {[%clk 0:00:19]} 29. Rxg1 {[%clk 0:00:50]}  Rf7 {[%clk 0:00:20]} 30. c4 {[%clk 0:00:48]}  dxc4 {[%clk 0:00:19]} 31. bxc4 {[%clk 0:00:47]}  b5 {[%clk 0:00:19]} 32. cxb5 {[%clk 0:00:38]}  axb5 {[%clk 0:00:20]} 33. Rb1 {[%clk 0:00:38]}  Rf5 {[%clk 0:00:20]} 34. Rxb5 {[%clk 0:00:38]}  Rxh5 {[%clk 0:00:20]} 35. a4 {[%clk 0:00:37]}  Rh2+ {[%clk 0:00:20]} 36. Kd1 {[%clk 0:00:34]}  Ra2 {[%clk 0:00:20]} 37. a5 {[%clk 0:00:34]}  h5 {[%clk 0:00:20]} 38. d4 {[%clk 0:00:33]}  exd4 {[%clk 0:00:19]} 39. exd4 {[%clk 0:00:33]}  h4 {[%clk 0:00:19]} 40. Rh5 {[%clk 0:00:31]}  h3 {[%clk 0:00:14]} 41. Rxh3 {[%clk 0:00:29]}  Rxa5 {[%clk 0:00:14]} 42. Rg3 {[%clk 0:00:27]}  g5 {[%clk 0:00:14]} 43. Kd2 {[%clk 0:00:26]}  Kf5 {[%clk 0:00:14]} 44. Rb3 {[%clk 0:00:23]}  Ke4 {[%clk 0:00:13]} 45. Rb4 {[%clk 0:00:20]}  Ra2+ {[%clk 0:00:13]} 46. Ke1 {[%clk 0:00:18]}  Ke3 {[%clk 0:00:12]} 47. Rb3+ {[%clk 0:00:17]}  Kxd4 {[%clk 0:00:12]} 48. Kf1 {[%clk 0:00:17]}  Ke4 {[%clk 0:00:11]} 49. Kg1 {[%clk 0:00:17]}  Kf4 {[%clk 0:00:12]} 50. Rb1 {[%clk 0:00:17]}  Kg3 {[%clk 0:00:13]} 51. Rc1 {[%clk 0:00:17]}  g4 {[%clk 0:00:13]} 52. Rb1 {[%clk 0:00:18]}  Ra3 {[%clk 0:00:12]} 53. Rc1 {[%clk 0:00:18]}  Kh3 {[%clk 0:00:13]} 54. Rb1 {[%clk 0:00:18]}  Rg3+ {[%clk 0:00:13]} 55. Kh1 {[%clk 0:00:18]}  Re3 {[%clk 0:00:12]} 56. Rc1 {[%clk 0:00:18]}  g3 {[%clk 0:00:12]} 57. Rb1 {[%clk 0:00:18]}  Rf3 {[%clk 0:00:12]} 58. Rc1 {[%clk 0:00:18]}  Rf2 {[%clk 0:00:12]} 59. Rb1 {[%clk 0:00:17]}  Rh2+ {[%clk 0:00:12]} 60. Kg1 {[%clk 0:00:17]}  Rf2 {[%clk 0:00:11]} 61. Kh1 {[%clk 0:00:17]}  Kg4 {[%clk 0:00:12]} 62. Kg1 {[%clk 0:00:16]}  Re2 {[%clk 0:00:12]} 63. Rc1 {[%clk 0:00:17]}  Rd2 {[%clk 0:00:12]} 64. Rb1 {[%clk 0:00:17]}  Ra2 {[%clk 0:00:11]} 65. Rc1 {[%clk 0:00:17]}  Kf3 {[%clk 0:00:10]} 66. Rd1 {[%clk 0:00:17]}  Re2 {[%clk 0:00:08]} 67. Rc1 {[%clk 0:00:17]}  Re3 {[%clk 0:00:07]} 68. Rd1 {[%clk 0:00:16]}  g2 {[%clk 0:00:07]} 69. Rc1 {[%clk 0:00:15]}  Kg3 {[%clk 0:00:07]} 70. Rb1 {[%clk 0:00:15]}  Kh3 {[%clk 0:00:07]} 71. Ra1 {[%clk 0:00:14]}  Rf3 {[%clk 0:00:08]} 72. Rc1 {[%clk 0:00:12]}  Kg3 {[%clk 0:00:08]} 73. Rd1 {[%clk 0:00:10]}  Re3 {[%clk 0:00:08]} 74. Rc1 {[%clk 0:00:10]}  Rd3 {[%clk 0:00:08]} 75. Rb1 {[%clk 0:00:10]}  Rc3 {[%clk 0:00:08]} 76. Rd1 {[%clk 0:00:10]}  Kf3 {[%clk 0:00:08]} 77. Re1 {[%clk 0:00:10]}  Rd3 {[%clk 0:00:08]} 78. Rc1 {[%clk 0:00:10]}  Rb3 {[%clk 0:00:08]} 79. Rb1 {[%clk 0:00:05]}  Rxb1+ {[%clk 0:00:08]} 0-1


[Site "https://www.chess.com"]

[Event "Titled Tuesday Blitz August 08 Early 2023"]
[White "Lacasa Diaz, Jose Antonio"]
[Black "Maus7"]
[WhiteFideId "2203375"]
[WhiteElo "2395"]
[BlackElo "2556"]
[Result "1-0"]
[Round "8"]
[TimeControl "180+1"]
[Date "2023.08.08"]
[WhiteClock "0:01:06"]
[BlackClock "0:00:18"]
[Board "98"]

1. Nf3 {[%clk 0:03:00]}  d5 {[%clk 0:02:59]} 2. e3 {[%clk 0:03:00]}  Nf6 {[%clk 0:02:59]} 3. b3 {[%clk 0:02:57]}  Bf5 {[%clk 0:02:58]} 4. Bb2 {[%clk 0:02:56]}  e6 {[%clk 0:02:59]} 5. c4 {[%clk 0:02:54]}  c6 {[%clk 0:02:58]} 6. Nc3 {[%clk 0:02:45]}  Nbd7 {[%clk 0:02:57]} 7. d4 {[%clk 0:02:44]}  Bd6 {[%clk 0:02:51]} 8. Bd3 {[%clk 0:02:44]}  Bxd3 {[%clk 0:02:36]} 9. Qxd3 {[%clk 0:02:45]}  O-O {[%clk 0:02:36]} 10. O-O {[%clk 0:02:43]}  Qc7 {[%clk 0:02:24]} 11. e4 {[%clk 0:02:42]}  dxe4 {[%clk 0:02:23]} 12. Nxe4 {[%clk 0:02:42]}  Nxe4 {[%clk 0:02:24]} 13. Qxe4 {[%clk 0:02:40]}  Rad8 {[%clk 0:02:20]} 14. Rad1 {[%clk 0:02:36]}  Be7 {[%clk 0:02:04]} 15. Ne5 {[%clk 0:02:23]}  Nxe5 {[%clk 0:01:57]} 16. dxe5 {[%clk 0:02:23]}  Qa5 {[%clk 0:01:47]} 17. a4 {[%clk 0:02:11]}  Rd2 {[%clk 0:01:31]} 18. Bc1 {[%clk 0:01:42]}  Rxd1 {[%clk 0:01:23]} 19. Rxd1 {[%clk 0:01:43]}  Rd8 {[%clk 0:01:19]} 20. Rxd8+ {[%clk 0:01:37]}  Qxd8 {[%clk 0:01:20]} 21. Qe2 {[%clk 0:01:28]}  Bb4 {[%clk 0:01:15]} 22. Bb2 {[%clk 0:01:23]}  h6 {[%clk 0:00:56]} 23. g3 {[%clk 0:01:23]}  g5 {[%clk 0:00:52]} 24. Kg2 {[%clk 0:01:21]}  Kg7 {[%clk 0:00:52]} 25. Qe3 {[%clk 0:01:13]}  a6 {[%clk 0:00:39]} 26. Qd4 {[%clk 0:01:08]}  Qb6 {[%clk 0:00:18]} 27. Qxb6 {[%clk 0:01:06]} 1-0


[Site "https://www.chess.com"]

[Event "Titled Tuesday Blitz August 08 Early 2023"]
[White "Mendez Fortes, Eduardo Jesus"]
[Black "Krzywda, Andrzej"]
[WhiteFideId "3502376"]
[BlackFideId "1114565"]
[WhiteElo "2555"]
[BlackElo "2383"]
[Result "1-0"]
[Round "8"]
[TimeControl "180+1"]
[Date "2023.08.08"]
[WhiteClock "0:00:40"]
[BlackClock "0:00:00"]
[Board "99"]

1. e4 {[%clk 0:03:00]}  e5 {[%clk 0:03:00]} 2. Nf3 {[%clk 0:02:59]}  Nf6 {[%clk 0:03:00]} 3. d4 {[%clk 0:02:58]}  Nxe4 {[%clk 0:03:00]} 4. Bd3 {[%clk 0:02:56]}  d5 {[%clk 0:02:59]} 5. Nxe5 {[%clk 0:02:55]}  Bd6 {[%clk 0:02:59]} 6. O-O {[%clk 0:02:55]}  O-O {[%clk 0:02:59]} 7. Nc3 {[%clk 0:02:55]}  Nxc3 {[%clk 0:02:58]} 8. bxc3 {[%clk 0:02:55]}  c5 {[%clk 0:02:44]} 9. Qh5 {[%clk 0:02:36]}  g6 {[%clk 0:02:44]} 10. Qf3 {[%clk 0:02:34]}  c4 {[%clk 0:02:38]} 11. Be2 {[%clk 0:02:32]}  Bxe5 {[%clk 0:02:24]} 12. dxe5 {[%clk 0:02:31]}  Bf5 {[%clk 0:02:24]} 13. Rd1 {[%clk 0:02:16]}  Be4 {[%clk 0:02:23]} 14. Qg3 {[%clk 0:02:15]}  Nc6 {[%clk 0:02:15]} 15. Bg5 {[%clk 0:02:08]}  Qa5 {[%clk 0:01:55]} 16. Bf6 {[%clk 0:02:07]}  Rfe8 {[%clk 0:01:53]} 17. Qh4 {[%clk 0:02:02]}  Qa3 {[%clk 0:01:50]} 18. f3 {[%clk 0:01:54]}  Bxc2 {[%clk 0:01:43]} 19. Rxd5 {[%clk 0:01:54]}  Ne7 {[%clk 0:01:18]} 20. Rd7 {[%clk 0:01:48]}  Nf5 {[%clk 0:01:16]} 21. Qxc4 {[%clk 0:01:47]}  Re6 {[%clk 0:01:09]} 22. Qb4 {[%clk 0:01:35]}  Qxb4 {[%clk 0:01:01]} 23. cxb4 {[%clk 0:01:36]}  Rc8 {[%clk 0:00:43]} 24. Rxb7 {[%clk 0:01:28]}  Nd4 {[%clk 0:00:43]} 25. Bf1 {[%clk 0:01:26]}  a6 {[%clk 0:00:33]} 26. a4 {[%clk 0:01:23]}  Nc6 {[%clk 0:00:24]} 27. f4 {[%clk 0:01:10]}  Nd4 {[%clk 0:00:15]} 28. b5 {[%clk 0:00:58]}  axb5 {[%clk 0:00:14]} 29. axb5 {[%clk 0:00:58]}  Be4 {[%clk 0:00:14]} 30. Rd7 {[%clk 0:00:57]}  Nb3 {[%clk 0:00:12]} 31. Rad1 {[%clk 0:00:55]}  Ree8 {[%clk 0:00:12]} 32. b6 {[%clk 0:00:55]}  Nc5 {[%clk 0:00:05]} 33. Rc7 {[%clk 0:00:55]}  Nb7 {[%clk 0:00:02]} 34. Bc4 {[%clk 0:00:52]}  Rf8 {[%clk 0:00:00]} 35. Rd4 {[%clk 0:00:40]} 1-0


[Site "https://www.chess.com"]